[Event "GER-ch Youth-U12 2022"]
[Site "Willingen"]
[Date "2022.06.10"]
[Round "8.10"]
[White "Seth, Aakrit"]
[Black "Blodig, Vincent"]
[Result "0-1"]
[ECO "D02"]
[WhiteElo "1435"]
[BlackElo "1461"]
[Annotator "NA RC COMBH"]
[PlyCount "106"]
[EventDate "2022.06.05"]
[EventType "swiss"]
[EventRounds "9"]
[EventCountry "GER"]
[SourceTitle "playchess.com"]
[Source "ChessBase"]
[SourceQuality "1"]
[TimeControl "40/4500+30:900+30"]

1. d4 {[%emt 0:00:00]} d5 {[%emt 0:00:00]} 2. Bf4 {[%emt 0:00:00]} Nf6 {[%emt 0:00:00]} 3. e3 {[%emt 0:00:00]} e6 {[%emt 0:00:00]} 4. Nf3 {[%emt 0:00:00]} Bd6 {[%emt 0:00:00]} 5. Bg3 {[%emt 0:00:00]} c5 {[%emt 0:00:00]} 6. c3 {[%emt 0:00:00]} O-O {[%emt 0:00:00]} 7. Nbd2 {[%emt 0:00:00]} Qc7 {[%emt 0:00:00]} 8. Bd3 {[%emt 0:00:00]} Nbd7 {[%emt 0:00:00]} 9. O-O {[%emt 0:00:00]} Bxg3 {[%emt 0:00:00]} 10. hxg3 {[%emt 0:00:00]} e5 {[%emt 0:00:00]} 11. dxe5 {[%emt 0:00:00]} Nxe5 {[%emt 0:00:00]} 12. Nxe5 {[%emt 0:00:00]} Qxe5 {[%emt 0:00:00]} 13. Nf3 {[%emt 0:00:00]} Qh5 {[%emt 0:00:00]} 14. Nh2 {[%emt 0:04:33]} Qxd1 {[%emt 0:00:00]} 15. Raxd1 {[%emt 0:00:24]} Be6 {[%emt 0:00:00]} 16. Bc2 {[%emt 0:21:12]} Ne4 {[%emt 0:05:18]} 17. Nf3 {[%emt 0:05:43]} Rfd8 {[%emt 0:07:37]} 18. Rd3 {[%emt 0:07:13]} f6 {[%emt 0:03:13]} 19. Rfd1 {[%emt 0:00:47]} b5 {[%emt 0:00:38]} 20. Nd2 {[%emt 0:05:29]} f5 {[%emt 0:08:57]} 21. Nxe4 {[%emt 0:08:09]} fxe4 {[%emt 0:00:10]} 22. R3d2 {[%emt 0:00:04]} Bg4 {[%emt 0:01:30]} 23. f3 {[%emt 0:00:44]} exf3 {[%emt 0:00:16]} 24. gxf3 {[%emt 0:02:44]} Bxf3 {[%emt 0:00:51]} 25. Rf1 {[%emt 0:00:34]} Bg4 {[%emt 0:01:25]} 26. Rf4 {[%emt 0:03:52]} h5 {[%emt 0:00:43]} 27. Bg6 {[%emt 0:01:00]} Rd7 {[%emt 0:01:51]} 28. Rh2 {[%emt 0:02:55]} a5 {[%emt 0:10:50]} 29. Bxh5 {[%emt 0:01:53]} Bxh5 {[%emt 0:00:15]} 30. Rxh5 {[%emt 0:00:09]} b4 {[%emt 0:00:29]} 31. Rff5 {[%emt 0:04:07]} bxc3 {[%emt 0:01:53]} 32. bxc3 {[%emt 0:00:13]} Rad8 {[%emt 0:00:10]} 33. Kf2 {[%emt 0:02:03]} a4 {[%emt 0:01:29]} 34. c4 {[%emt 0:08:16]} dxc4 {[%emt 0:00:56]} 35. Rxc5 {[%emt 0:00:11]} Rd2+ {[%emt 0:00:20]} 36. Kf3 {[%emt 0:00:17]} Rxa2 {[%emt 0:00:23]} 37. Rxc4 {[%emt 0:00:10]} Ra8 {[%emt 0:00:54]} 38. Rcc5 {[%emt 0:04:05]} Rb2 {[%emt 0:00:42]} 39. Ra5 {[%emt 0:00:48]} Rbb8 {[%emt 0:00:16]} 40. Rxa8 {[%emt 0:02:20]} Rxa8 {[%emt 0:00:15]} 41. Rh1 {[%emt 0:15:07]} a3 {[%emt 0:15:48]} 42. Ra1 {[%emt 0:00:46]} a2 {[%emt 0:00:11]} 43. Ke2 {[%emt 0:00:10]} Kf7 {[%emt 0:00:18]} 44. Kd2 {[%emt 0:00:12]} Ke6 {[%emt 0:00:45]} 45. Ke2 {[%emt 0:01:04]} Ke5 {[%emt 0:00:21]} 46. Kf3 {[%emt 0:02:34]} Ra4 {[%emt 0:00:30]} 47. Ke2 {[%emt 0:00:00]} Ke4 {[%emt 0:00:00]} 48. Kd2 {[%emt 0:00:00]} Ra3 {[%emt 0:00:00]} 49. g4 {[%emt 0:00:00]} Kf3 {[%emt 0:00:00]} 50. g5 {[%emt 0:00:00]} Ke4 {[%emt 0:00:00]} 51. g6 {[%emt 0:00:00]} Kf5 {[%emt 0:00:00]} 52. Ke2 {[%emt 0:00:00]} Kxg6 {[%emt 0:00:00]} 53. Kf3 {[%emt 0:00:00]} Kf5 {[%emt 0:00:00]} 0-1

[Event "GER-ch Youth-U12 2022"]
[Site "Willingen"]
[Date "2022.06.10"]
[Round "8.11"]
[White "Freude, Paul"]
[Black "Aniol, Nico"]
[Result "0-1"]
[ECO "B13"]
[WhiteElo "1415"]
[BlackElo "1494"]
[Annotator "NA RC COMBH"]
[PlyCount "84"]
[EventDate "2022.06.05"]
[EventType "swiss"]
[EventRounds "9"]
[EventCountry "GER"]
[SourceTitle "playchess.com"]
[Source "ChessBase"]
[SourceQuality "1"]
[TimeControl "40/4500+30:900+30"]

1. e4 {[%emt 0:00:00]} c6 {[%emt 0:00:00]} 2. d4 {[%emt 0:00:00]} d5 {[%emt 0:00:00]} 3. exd5 {[%emt 0:00:00]} cxd5 {[%emt 0:00:00]} 4. Bd3 {[%emt 0:00:00]} Nc6 {[%emt 0:00:00]} 5. c3 {[%emt 0:00:00]} Nf6 {[%emt 0:00:00]} 6. h3 {[%emt 0:00:00]} e5 {[%emt 0:00:00]} 7. dxe5 {[%emt 0:00:00]} Nxe5 {[%emt 0:00:00]} 8. Bc2 {[%emt 0:00:00]} Bc5 {[%emt 0:00:00]} 9. Ne2 {[%emt 0:00:00]} O-O {[%emt 0:00:00]} 10. O-O {[%emt 0:00:00]} h6 {[%emt 0:00:00]} 11. Bf4 {[%emt 0:00:00]} Re8 {[%emt 0:00:59]} 12. Nd2 {[%emt 0:00:00]} Nc6 {[%emt 0:16:06]} 13. b4 {[%emt 0:00:00]} Bd6 {[%emt 0:03:26]} 14. Bxd6 {[%emt 0:00:00]} Qxd6 {[%emt 0:00:06]} 15. Nc4 {[%emt 0:00:19]} Qc7 {[%emt 0:03:33]} 16. Ne3 {[%emt 0:01:18]} Be6 {[%emt 0:02:37]} 17. Bb3 {[%emt 0:02:51]} Rad8 {[%emt 0:01:13]} 18. Qc2 {[%emt 0:00:36]} Qb6 {[%emt 0:04:36]} 19. Ba4 {[%emt 0:06:36]} Rc8 {[%emt 0:04:00]} 20. Qb2 {[%emt 0:04:32]} Red8 {[%emt 0:03:09]} 21. Rad1 {[%emt 0:03:57]} Na5 {[%emt 0:08:08]} 22. Bb3 {[%emt 0:04:46]} Nxb3 {[%emt 0:00:55]} 23. axb3 {[%emt 0:01:25]} Rd7 {[%emt 0:02:21]} 24. Rd3 {[%emt 0:03:34]} Rcd8 {[%emt 0:07:28]} 25. Rfd1 {[%emt 0:01:17]} Qd6 {[%emt 0:08:14]} 26. f4 {[%emt 0:04:23]} Qb6 {[%emt 0:00:00]} 27. Nd4 {[%emt 0:01:57]} Rd6 {[%emt 0:00:00]} 28. Kh2 {[%emt 0:02:24]} a6 {[%emt 0:01:34]} 29. Nef5 {[%emt 0:09:03]} Bxf5 {[%emt 0:01:48]} 30. Nxf5 {[%emt 0:00:39]} R6d7 {[%emt 0:00:24]} 31. c4 {[%emt 0:04:07]} Qe6 {[%emt 0:02:05]} 32. Rxd5 {[%emt 0:01:20]} Rxd5 {[%emt 0:00:14]} 33. Rxd5 {[%emt 0:04:57]} Rxd5 {[%emt 0:00:04]} 34. Nd4 {[%emt 0:00:14]} Rxd4 {[%emt 0:00:07]} 35. Qxd4 {[%emt 0:00:04]} Qe4 {[%emt 0:00:08]} 36. Qxe4 {[%emt 0:02:25]} Nxe4 {[%emt 0:00:25]} 37. Kg1 {[%emt 0:00:05]} Nd2 {[%emt 0:00:03]} 38. Kf2 {[%emt 0:00:08]} Kf8 {[%emt 0:01:09]} 39. Ke3 {[%emt 0:00:36]} Nxb3 {[%emt 0:00:03]} 40. Kd3 {[%emt 0:00:16]} Ke7 {[%emt 0:00:07]} 41. Kc3 {[%emt 0:15:07]} Nc1 {[%emt 0:15:03]} 42. f5 {[%emt 0:00:55]} Ne2+ {[%emt 0:00:00]} 0-1

[Event "GER-ch Youth-U12 2022"]
[Site "Willingen"]
[Date "2022.06.10"]
[Round "8.12"]
[White "Mukazhanov, Mansur"]
[Black "Herrmann, Arthur"]
[Result "0-1"]
[ECO "B19"]
[WhiteElo "1279"]
[BlackElo "1507"]
[Annotator "NA RC COMBH"]
[PlyCount "104"]
[EventDate "2022.06.05"]
[EventType "swiss"]
[EventRounds "9"]
[EventCountry "GER"]
[SourceTitle "playchess.com"]
[Source "ChessBase"]
[SourceQuality "1"]
[TimeControl "40/4500+30:900+30"]

1. e4 {[%emt 0:00:00]} c6 {[%emt 0:00:00]} 2. d4 {[%emt 0:00:00]} d5 {[%emt 0:00:00]} 3. Nc3 {[%emt 0:00:00]} dxe4 {[%emt 0:00:00]} 4. Nxe4 {[%emt 0:00:00]} Bf5 {[%emt 0:00:00]} 5. Ng3 {[%emt 0:00:00]} Bg6 {[%emt 0:00:00]} 6. h4 {[%emt 0:00:00]} h6 {[%emt 0:00:00]} 7. h5 {[%emt 0:00:00]} Bh7 {[%emt 0:00:00]} 8. Nf3 {[%emt 0:00:00]} Nd7 {[%emt 0:00:00]} 9. Bd3 {[%emt 0:00:00]} Bxd3 {[%emt 0:00:00]} 10. Qxd3 {[%emt 0:00:00]} e6 {[%emt 0:00:00]} 11. Bf4 {[%emt 0:00:00]} Ngf6 {[%emt 0:00:00]} 12. O-O {[%emt 0:00:00]} Be7 {[%emt 0:00:00]} 13. Rad1 {[%emt 0:00:00]} O-O {[%emt 0:00:00]} 14. c4 {[%emt 0:00:00]} Rc8 {[%emt 0:02:58]} 15. Rfe1 {[%emt 0:04:58]} Qa5 {[%emt 0:10:52]} 16. Ne5 {[%emt 0:09:36]} Rcd8 {[%emt 0:11:56]} 17. a3 {[%emt 0:16:43]} Qa6 {[%emt 0:13:28]} 18. Nf3 {[%emt 0:04:45]} Rfe8 {[%emt 0:06:08]} 19. Qc2 {[%emt 0:09:07]} b5 {[%emt 0:13:34]} 20. b3 {[%emt 0:00:41]} bxc4 {[%emt 0:05:02]} 21. bxc4 {[%emt 0:00:12]} Qa5 {[%emt 0:01:54]} 22. Ne5 {[%emt 0:00:55]} Nxe5 {[%emt 0:01:07]} 23. dxe5 {[%emt 0:00:08]} Nd7 {[%emt 0:00:47]} 24. a4 {[%emt 0:03:58]} Nb6 {[%emt 0:02:32]} 25. Be3 {[%emt 0:02:53]} Bc5 {[%emt 0:02:02]} 26. Ra1 {[%emt 0:01:02]} Bxe3 {[%emt 0:01:03]} 27. Rxe3 {[%emt 0:00:09]} Rd2 {[%emt 0:01:25]} 28. Qb3 {[%emt 0:01:57]} Rd4 {[%emt 0:01:51]} 29. Rc3 {[%emt 0:02:08]} Red8 {[%emt 0:02:53]} 30. c5 {[%emt 0:02:28]} Nd7 {[%emt 0:01:36]} 31. Qc2 {[%emt 0:03:54]} Nxe5 {[%emt 0:00:53]} 32. Re1 {[%emt 0:01:02]} Rd2 {[%emt 0:01:53]} 33. Qb3 {[%emt 0:01:11]} Nd3 {[%emt 0:00:46]} 34. Rf1 {[%emt 0:00:37]} Nxc5 {[%emt 0:01:00]} 35. Qa3 {[%emt 0:02:02]} R2d5 {[%emt 0:00:41]} 36. Rc4 {[%emt 0:00:42]} Qb6 {[%emt 0:00:53]} 37. Kh2 {[%emt 0:01:32]} Nd3 {[%emt 0:01:29]} 38. Qe7 {[%emt 0:03:04]} R5d7 {[%emt 0:01:07]} 39. Qh4 {[%emt 0:00:37]} Rd4 {[%emt 0:01:50]} 40. Rxd4 {[%emt 0:00:35]} Qxd4 {[%emt 0:01:12]} 41. Qe7 {[%emt 0:15:41]} Ne5 {[%emt 0:00:00]} 42. f4 {[%emt 0:00:00]} Ng4+ {[%emt 0:00:00]} 43. Kh3 {[%emt 0:00:00]} Nf6 {[%emt 0:00:00]} 44. Ne2 {[%emt 0:00:00]} Qd5 {[%emt 0:00:00]} 45. f5 {[%emt 0:00:00]} Rd7 {[%emt 0:00:00]} 46. Qb4 {[%emt 0:00:00]} e5 {[%emt 0:00:00]} 47. Ng3 {[%emt 0:00:00]} c5 {[%emt 0:00:00]} 48. Qb8+ {[%emt 0:00:00]} Kh7 {[%emt 0:00:00]} 49. Re1 {[%emt 0:00:00]} e4 {[%emt 0:00:00]} 50. Qf4 {[%emt 0:00:00]} Re7 {[%emt 0:00:00]} 51. Re3 {[%emt 0:00:00]} Qd4 {[%emt 0:00:00]} 52. Ne2 {[%emt 0:00:00]} Nd5 {[%emt 0:01:32]} 0-1

[Event "GER-ch Youth-U12 2022"]
[Site "Willingen"]
[Date "2022.06.10"]
[Round "8.13"]
[White "Burkart, Lloyd Shang"]
[Black "Mandalka, Justus"]
[Result "1/2-1/2"]
[ECO "D30"]
[WhiteElo "1559"]
[BlackElo "1402"]
[Annotator "NA RC COMBH"]
[PlyCount "86"]
[EventDate "2022.06.05"]
[EventType "swiss"]
[EventRounds "9"]
[EventCountry "GER"]
[SourceTitle "playchess.com"]
[Source "ChessBase"]
[SourceQuality "1"]
[TimeControl "40/4500+30:900+30"]

1. d4 {[%emt 0:00:00]} d5 {[%emt 0:00:00]} 2. c4 {[%emt 0:00:00]} e6 {[%emt 0:00:00]} 3. Nf3 {[%emt 0:00:00]} c5 {[%emt 0:00:00]} 4. cxd5 {[%emt 0:00:00]} exd5 {[%emt 0:00:00]} 5. g3 {[%emt 0:00:00]} Nc6 {[%emt 0:00:00]} 6. Bg2 {[%emt 0:00:00]} Be7 {[%emt 0:00:00]} 7. dxc5 {[%emt 0:00:00]} Bxc5 {[%emt 0:00:00]} 8. O-O {[%emt 0:00:00]} Nf6 {[%emt 0:00:00]} 9. a3 {[%emt 0:00:00]} a5 {[%emt 0:00:00]} 10. Qc2 {[%emt 0:00:00]} Be7 {[%emt 0:00:00]} 11. Nc3 {[%emt 0:00:00]} d4 {[%emt 0:00:00]} 12. Rd1 {[%emt 0:00:00]} Qb6 {[%emt 0:00:00]} 13. Ne4 {[%emt 0:00:00]} Be6 {[%emt 0:00:00]} 14. Qd3 {[%emt 0:03:48]} Bb3 {[%emt 0:00:00]} 15. Re1 {[%emt 0:03:07]} Nxe4 {[%emt 0:03:04]} 16. Qxe4 {[%emt 0:00:07]} Rd8 {[%emt 0:01:17]} 17. Bg5 {[%emt 0:07:34]} f6 {[%emt 0:00:28]} 18. Bd2 {[%emt 0:07:05]} O-O {[%emt 0:02:11]} 19. Bh3 {[%emt 0:08:20]} Ne5 {[%emt 0:12:29]} 20. Nxe5 {[%emt 0:06:49]} fxe5 {[%emt 0:00:06]} 21. Qxe5 {[%emt 0:00:38]} Bf6 {[%emt 0:01:02]} 22. Qxa5 {[%emt 0:01:23]} Qxa5 {[%emt 0:01:04]} 23. Bxa5 {[%emt 0:00:19]} Ra8 {[%emt 0:01:19]} 24. Bb4 {[%emt 0:02:27]} Rfe8 {[%emt 0:03:08]} 25. Bf5 {[%emt 0:08:16]} Bc4 {[%emt 0:04:41]} 26. Bd3 {[%emt 0:00:07]} Bxd3 {[%emt 0:00:05]} 27. exd3 {[%emt 0:00:03]} Rxe1+ {[%emt 0:00:21]} 28. Rxe1 {[%emt 0:00:28]} Rc8 {[%emt 0:00:02]} 29. Re2 {[%emt 0:01:50]} Kf7 {[%emt 0:02:02]} 30. Kg2 {[%emt 0:02:19]} Rc6 {[%emt 0:02:08]} 31. Kf3 {[%emt 0:01:31]} g6 {[%emt 0:02:41]} 32. Bd2 {[%emt 0:08:22]} Rc2 {[%emt 0:03:19]} 33. Bf4 {[%emt 0:02:02]} Rc5 {[%emt 0:00:44]} 34. Bd2 {[%emt 0:02:48]} Rf5+ {[%emt 0:00:59]} 35. Kg2 {[%emt 0:00:34]} Rc5 {[%emt 0:00:20]} 36. Bb4 {[%emt 0:01:15]} Rc6 {[%emt 0:01:21]} 37. h3 {[%emt 0:03:49]} h6 {[%emt 0:01:15]} 38. f4 {[%emt 0:02:09]} g5 {[%emt 0:01:21]} 39. f5 {[%emt 0:00:43]} h5 {[%emt 0:01:31]} 40. g4 {[%emt 0:02:37]} h4 {[%emt 0:00:07]} 41. Kf3 {[%emt 0:17:26]} Rc1 {[%emt 0:16:50]} 42. Be1 {[%emt 0:10:52]} Rd1 {[%emt 0:03:46]} 43. Ke4 {[%emt 0:00:14]} Kg7 {[%emt 0:01:10]} 1/2-1/2

[Event "GER-ch Youth-U12 2022"]
[Site "Willingen"]
[Date "2022.06.10"]
[Round "8.14"]
[White "Aweh, Mads"]
[Black "Herrmann, Jakob"]
[Result "1-0"]
[ECO "B51"]
[WhiteElo "1438"]
[BlackElo "1737"]
[Annotator "NA RC COMBH"]
[PlyCount "135"]
[EventDate "2022.06.05"]
[EventType "swiss"]
[EventRounds "9"]
[EventCountry "GER"]
[SourceTitle "playchess.com"]
[Source "ChessBase"]
[SourceQuality "1"]
[TimeControl "40/4500+30:900+30"]

1. e4 {[%emt 0:00:00]} c5 {[%emt 0:00:00]} 2. Nf3 {[%emt 0:00:00]} d6 {[%emt 0:00:00]} 3. Bb5+ {[%emt 0:00:00]} Nd7 {[%emt 0:00:00]} 4. O-O {[%emt 0:00:00]} Ngf6 {[%emt 0:00:00]} 5. Re1 {[%emt 0:00:00]} a6 {[%emt 0:00:00]} 6. Bf1 {[%emt 0:00:00]} e6 {[%emt 0:00:00]} 7. c3 {[%emt 0:00:00]} b5 {[%emt 0:00:00]} 8. d4 {[%emt 0:00:00]} Bb7 {[%emt 0:00:00]} 9. Bg5 {[%emt 0:02:19]} Be7 {[%emt 0:00:00]} 10. Nbd2 {[%emt 0:01:37]} O-O {[%emt 0:05:10]} 11. h4 {[%emt 0:03:14]} h6 {[%emt 0:05:30]} 12. Bf4 {[%emt 0:01:31]} Qb6 {[%emt 0:08:47]} 13. Rc1 {[%emt 0:08:01]} Rac8 {[%emt 0:05:36]} 14. Bd3 {[%emt 0:01:48]} cxd4 {[%emt 0:09:10]} 15. cxd4 {[%emt 0:01:09]} Rxc1 {[%emt 0:00:19]} 16. Qxc1 {[%emt 0:00:11]} Rc8 {[%emt 0:00:10]} 17. Qb1 {[%emt 0:01:20]} Nf8 {[%emt 0:08:00]} 18. e5 {[%emt 0:06:43]} dxe5 {[%emt 0:00:27]} 19. dxe5 {[%emt 0:01:01]} Nd5 {[%emt 0:00:17]} 20. Be3 {[%emt 0:01:05]} Nxe3 {[%emt 0:00:29]} 21. Rxe3 {[%emt 0:00:08]} Bc5 {[%emt 0:04:29]} 22. Re2 {[%emt 0:00:35]} Bd5 {[%emt 0:03:47]} 23. Be4 {[%emt 0:02:41]} Bxe4 {[%emt 0:02:05]} 24. Nxe4 {[%emt 0:01:43]} Ng6 {[%emt 0:02:03]} 25. Rc2 {[%emt 0:04:41]} Nf4 {[%emt 0:01:30]} 26. b4 {[%emt 0:02:12]} Bxf2+ {[%emt 0:05:15]} 27. Nxf2 {[%emt 0:01:27]} Rd8 {[%emt 0:00:47]} 28. Rc5 {[%emt 0:01:52]} a5 {[%emt 0:02:17]} 29. Qf1 {[%emt 0:03:52]} axb4 {[%emt 0:01:10]} 30. Qxb5 {[%emt 0:02:21]} Qxb5 {[%emt 0:00:47]} 31. Rxb5 {[%emt 0:00:08]} Ra8 {[%emt 0:00:04]} 32. Rxb4 {[%emt 0:00:48]} Ne2+ {[%emt 0:00:06]} 33. Kh2 {[%emt 0:03:00]} Rxa2 {[%emt 0:00:20]} 34. Ne4 {[%emt 0:01:45]} Nf4 {[%emt 0:03:08]} 35. Nf6+ {[%emt 0:01:15]} gxf6 {[%emt 0:00:00]} 36. Rxf4 {[%emt 0:00:10]} f5 {[%emt 0:00:00]} 37. Rb4 {[%emt 0:02:10]} Re2 {[%emt 0:01:48]} 38. Kg1 {[%emt 0:01:24]} Kg7 {[%emt 0:02:11]} 39. Rb7 {[%emt 0:03:31]} Kg6 {[%emt 0:02:20]} 40. h5+ {[%emt 0:02:57]} Kg7 {[%emt 0:00:26]} 41. Kf1 {[%emt 0:15:30]} Re4 {[%emt 0:15:20]} 42. Kf2 {[%emt 0:01:11]} Ra4 {[%emt 0:02:17]} 43. g3 {[%emt 0:02:17]} Ra2+ {[%emt 0:01:33]} 44. Kg1 {[%emt 0:00:41]} Ra3 {[%emt 0:01:55]} 45. Kg2 {[%emt 0:00:06]} Ra2+ {[%emt 0:00:32]} 46. Kh3 {[%emt 0:00:43]} Ra4 {[%emt 0:00:48]} 47. Nd2 {[%emt 0:01:18]} Rd4 {[%emt 0:01:21]} 48. Nf3 {[%emt 0:00:47]} Ra4 {[%emt 0:00:33]} 49. Rb5 {[%emt 0:00:41]} Rg4 {[%emt 0:02:52]} 50. Nh2 {[%emt 0:02:08]} Rg5 {[%emt 0:00:35]} 51. Kh4 {[%emt 0:00:33]} Kh7 {[%emt 0:01:13]} 52. g4 {[%emt 0:01:39]} Kg7 {[%emt 0:01:15]} 53. Rb4 {[%emt 0:01:32]} fxg4 {[%emt 0:04:01]} 54. Rxg4 {[%emt 0:01:24]} f6 {[%emt 0:00:13]} 55. Rxg5+ {[%emt 0:00:35]} hxg5+ {[%emt 0:00:28]} 56. Kg4 {[%emt 0:00:08]} fxe5 {[%emt 0:00:10]} 57. Kxg5 {[%emt 0:00:15]} e4 {[%emt 0:00:09]} 58. Ng4 {[%emt 0:00:23]} e5 {[%emt 0:00:40]} 59. Kf5 {[%emt 0:02:01]} e3 {[%emt 0:00:35]} 60. Nxe3 {[%emt 0:00:13]} e4 {[%emt 0:00:09]} 61. Ng4 {[%emt 0:01:09]} e3 {[%emt 0:00:10]} 62. Nxe3 {[%emt 0:00:09]} Kh6 {[%emt 0:00:34]} 63. Kg4 {[%emt 0:00:04]} Kh7 {[%emt 0:00:12]} 64. Nf5 {[%emt 0:00:22]} Kh8 {[%emt 0:00:18]} 65. Kg5 {[%emt 0:00:17]} Kh7 {[%emt 0:00:11]} 66. h6 {[%emt 0:00:48]} Kh8 {[%emt 0:00:10]} 67. Kg6 {[%emt 0:00:17]} Kg8 {[%emt 0:00:05]} 68. Nd6 {[%emt 0:00:09]} 1-0

[Event "GER-ch Youth-U12 2022"]
[Site "Willingen"]
[Date "2022.06.10"]
[Round "8.15"]
[White "Uyar, Levin"]
[Black "Kullmann, Max"]
[Result "1-0"]
[ECO "B01"]
[WhiteElo "1306"]
[BlackElo "1442"]
[Annotator "NA RC COMBH"]
[PlyCount "71"]
[EventDate "2022.06.05"]
[EventType "swiss"]
[EventRounds "9"]
[EventCountry "GER"]
[SourceTitle "playchess.com"]
[Source "ChessBase"]
[SourceQuality "1"]
[TimeControl "40/4500+30:900+30"]

1. e4 {[%emt 0:00:00]} d5 {[%emt 0:00:00]} 2. exd5 {[%emt 0:00:00]} Qxd5 {[%emt 0:00:00]} 3. Nf3 {[%emt 0:00:00]} Nf6 {[%emt 0:00:00]} 4. d4 {[%emt 0:00:00]} c6 {[%emt 0:00:00]} 5. c4 {[%emt 0:00:00]} Qd8 {[%emt 0:00:00]} 6. Be2 {[%emt 0:00:00]} Bf5 {[%emt 0:00:00]} 7. Qb3 {[%emt 0:00:00]} Qc8 {[%emt 0:15:08]} 8. Nc3 {[%emt 0:00:09]} e6 {[%emt 0:01:44]} 9. Bf4 {[%emt 0:01:44]} Nbd7 {[%emt 0:06:09]} 10. O-O {[%emt 0:04:10]} Nh5 {[%emt 0:05:43]} 11. Be3 {[%emt 0:02:38]} Bd6 {[%emt 0:04:02]} 12. Ne5 {[%emt 0:06:28]} Nhf6 {[%emt 0:04:27]} 13. f4 {[%emt 0:08:35]} O-O {[%emt 0:04:40]} 14. Bf3 {[%emt 0:03:00]} Be7 {[%emt 0:06:37]} 15. Rac1 {[%emt 0:02:22]} Qc7 {[%emt 0:04:47]} 16. Rfd1 {[%emt 0:06:45]} Nxe5 {[%emt 0:11:03]} 17. fxe5 {[%emt 0:04:24]} Nd7 {[%emt 0:01:36]} 18. Be4 {[%emt 0:09:22]} Bg4 {[%emt 0:04:46]} 19. Rf1 {[%emt 0:01:11]} Bh5 {[%emt 0:02:55]} 20. Bf4 {[%emt 0:06:00]} Bg6 {[%emt 0:05:03]} 21. Bxg6 {[%emt 0:01:16]} hxg6 {[%emt 0:00:07]} 22. c5 {[%emt 0:13:48]} Rad8 {[%emt 0:00:56]} 23. Ne4 {[%emt 0:00:34]} Qc8 {[%emt 0:01:09]} 24. Rf3 {[%emt 0:01:22]} Nb8 {[%emt 0:01:54]} 25. Nd6 {[%emt 0:03:21]} Bxd6 {[%emt 0:00:42]} 26. exd6 {[%emt 0:01:18]} Nd7 {[%emt 0:00:43]} 27. Bg5 {[%emt 0:00:18]} Nf6 {[%emt 0:01:03]} 28. Bxf6 {[%emt 0:00:22]} gxf6 {[%emt 0:00:07]} 29. Rxf6 {[%emt 0:00:07]} Rd7 {[%emt 0:00:40]} 30. Rcf1 {[%emt 0:01:49]} Kg7 {[%emt 0:01:19]} 31. Qc3 {[%emt 0:00:55]} Qe8 {[%emt 0:00:59]} 32. d5 {[%emt 0:00:45]} e5 {[%emt 0:00:20]} 33. dxc6 {[%emt 0:00:09]} bxc6 {[%emt 0:00:09]} 34. Qf3 {[%emt 0:01:03]} Kg8 {[%emt 0:01:11]} 35. Qxc6 {[%emt 0:00:51]} Qc8 {[%emt 0:01:05]} 36. Qd5 {[%emt 0:00:42]} 1-0

[Event "GER-ch Youth-U12 2022"]
[Site "Willingen"]
[Date "2022.06.10"]
[Round "8.16"]
[White "Wylie, Leonard"]
[Black "Albrecht, Neil"]
[Result "0-1"]
[ECO "C24"]
[WhiteElo "1733"]
[BlackElo "1376"]
[Annotator "NA RC COMBH"]
[PlyCount "120"]
[EventDate "2022.06.05"]
[EventType "swiss"]
[EventRounds "9"]
[EventCountry "GER"]
[SourceTitle "playchess.com"]
[Source "ChessBase"]
[SourceQuality "1"]
[TimeControl "40/4500+30:900+30"]

1. e4 {[%emt 0:00:00]} e5 {[%emt 0:00:00]} 2. d4 {[%emt 0:00:00]} exd4 {[%emt 0:00:00]} 3. Bc4 {[%emt 0:00:00]} Nf6 {[%emt 0:00:00]} 4. Nf3 {[%emt 0:00:00]} Bb4+ {[%emt 0:00:00]} 5. c3 {[%emt 0:00:00]} dxc3 {[%emt 0:00:00]} 6. bxc3 {[%emt 0:00:00]} d5 {[%emt 0:00:00]} 7. e5 {[%emt 0:00:00]} Ne4 {[%emt 0:00:00]} 8. cxb4 {[%emt 0:00:00]} dxc4 {[%emt 0:00:00]} 9. Qe2 {[%emt 0:00:00]} Qd3 {[%emt 0:00:00]} 10. Qxd3 {[%emt 0:00:00]} cxd3 {[%emt 0:00:00]} 11. O-O {[%emt 0:00:00]} O-O {[%emt 0:01:28]} 12. Re1 {[%emt 0:00:00]} f5 {[%emt 0:00:25]} 13. Rd1 {[%emt 0:09:32]} Rd8 {[%emt 0:07:58]} 14. Bf4 {[%emt 0:00:00]} h6 {[%emt 0:04:27]} 15. h4 {[%emt 0:00:00]} Be6 {[%emt 0:02:23]} 16. Nh2 {[%emt 0:00:00]} g5 {[%emt 0:09:35]} 17. f3 {[%emt 0:06:26]} gxf4 {[%emt 0:00:43]} 18. fxe4 {[%emt 0:00:20]} fxe4 {[%emt 0:00:09]} 19. Nc3 {[%emt 0:00:16]} Bf5 {[%emt 0:05:48]} 20. Rf1 {[%emt 0:03:03]} f3 {[%emt 0:01:19]} 21. Rfe1 {[%emt 0:03:22]} d2 {[%emt 0:05:05]} 22. Re3 {[%emt 0:04:09]} fxg2 {[%emt 0:01:32]} 23. Kxg2 {[%emt 0:00:17]} Nc6 {[%emt 0:00:14]} 24. Rd1 {[%emt 0:00:55]} Rd4 {[%emt 0:04:36]} 25. a3 {[%emt 0:00:32]} Rad8 {[%emt 0:03:32]} 26. Nf1 {[%emt 0:07:41]} Nxe5 {[%emt 0:01:15]} 27. Nb5 {[%emt 0:01:09]} Bg4 {[%emt 0:00:41]} 28. Rg3 {[%emt 0:00:25]} Kh8 {[%emt 0:00:39]} 29. Rxg4 {[%emt 0:01:39]} Nxg4 {[%emt 0:00:16]} 30. Nxd4 {[%emt 0:00:21]} Rxd4 {[%emt 0:00:22]} 31. Rxd2 {[%emt 0:00:19]} Rxd2+ {[%emt 0:02:04]} 32. Nxd2 {[%emt 0:00:14]} Ne3+ {[%emt 0:00:23]} 33. Kf2 {[%emt 0:00:26]} Nc2 {[%emt 0:00:28]} 34. Nxe4 {[%emt 0:00:20]} Nxa3 {[%emt 0:00:13]} 35. Nc5 {[%emt 0:00:06]} Nc2 {[%emt 0:00:57]} 36. Nd3 {[%emt 0:01:23]} Kg7 {[%emt 0:00:20]} 37. b5 {[%emt 0:00:44]} b6 {[%emt 0:00:32]} 38. Ke2 {[%emt 0:01:44]} Nd4+ {[%emt 0:00:11]} 39. Ke3 {[%emt 0:00:10]} Nxb5 {[%emt 0:00:06]} 40. Ke4 {[%emt 0:00:08]} c5 {[%emt 0:02:34]} 41. Kd5 {[%emt 0:15:14]} Nd4 {[%emt 0:15:11]} 42. Kc4 {[%emt 0:00:41]} Kf6 {[%emt 0:00:44]} 43. Nf4 {[%emt 0:00:24]} Ke5 {[%emt 0:01:46]} 44. Ng6+ {[%emt 0:00:12]} Kd6 {[%emt 0:00:17]} 45. Nh8 {[%emt 0:00:25]} b5+ {[%emt 0:00:42]} 46. Kd3 {[%emt 0:00:09]} Nf3 {[%emt 0:00:37]} 47. Nf7+ {[%emt 0:00:29]} Kd5 {[%emt 0:00:20]} 48. h5 {[%emt 0:00:03]} Ne5+ {[%emt 0:00:22]} 49. Kc3 {[%emt 0:00:21]} Nxf7 {[%emt 0:00:08]} 50. Kb2 {[%emt 0:00:04]} a5 {[%emt 0:00:08]} 51. Kb3 {[%emt 0:00:05]} a4+ {[%emt 0:00:05]} 52. Ka3 {[%emt 0:00:04]} Kc4 {[%emt 0:00:09]} 53. Ka2 {[%emt 0:00:04]} b4 {[%emt 0:00:06]} 54. Kb2 {[%emt 0:00:02]} a3+ {[%emt 0:00:07]} 55. Ka2 {[%emt 0:00:01]} Kc3 {[%emt 0:00:25]} 56. Kb1 {[%emt 0:00:05]} b3 {[%emt 0:00:12]} 57. Ka1 {[%emt 0:00:09]} b2+ {[%emt 0:00:09]} 58. Kb1 {[%emt 0:00:06]} a2+ {[%emt 0:00:08]} 59. Kxa2 {[%emt 0:00:04]} Kc2 {[%emt 0:00:09]} 60. Ka3 {[%emt 0:00:08]} b1=Q {[%emt 0:00:47]} 0-1